bitfinex/quotes_BTCUSD_20250421
["timestamp","ask_amount","ask_price","bid_price","bid_amount"]
[1745262401644,0.85994119,87014.0,87013.0,0.00015709]
[1745262401845,0.90514119,87014.0,87013.0,0.00015709]
[1745262402049,0.91585206,87014.0,87013.0,0.00015709]
[1745262402319,0.0114961,86986.0,86982.0,0.32239695]
[1745262402530,0.01149649,86983.0,86977.0,0.01149729]
[1745262402739,0.11375594,86982.0,86979.0,0.22993966]
[1745262402935,0.28996335,86982.0,86979.0,0.22993966]
[1745262403369,0.28996335,86982.0,86980.0,0.22993613]
[1745262403773,0.28996335,86982.0,86976.0,0.01149742]
[1745262403927,0.28996335,86982.0,86979.0,0.01149702]
[1745262404128,0.28996335,86982.0,86980.0,0.22993745]
[1745262405122,0.28996335,86982.0,86980.0,0.23009454]
[1745262405326,0.13996335,86982.0,86980.0,0.23009454]
[1745262405799,0.11375594,86982.0,86980.0,0.23009454]
[1745262406009,0.02600974,86981.0,86980.0,0.23009454]
[1745262406174,0.13976568,86981.0,86980.0,0.23009454]
[1745262406381,0.11375594,86981.0,86980.0,0.23009454]
[1745262407573,0.11475594,86981.0,86980.0,0.23009454]
[1745262408137,0.10975594,86981.0,86980.0,0.23009454]
[1745262408512,0.10975594,86981.0,86980.0,0.00015709]
[1745262408899,0.13545507,86981.0,86980.0,0.00015709]
[1745262409868,0.13545507,86981.0,86980.0,0.230095]
[1745262410680,0.13445507,86981.0,86980.0,0.230095]
[1745262411087,0.13545507,86981.0,86980.0,0.230095]
[1745262411307,0.13645507,86981.0,86980.0,0.230095]
[1745262411489,0.13145507,86981.0,86980.0,0.230095]
[1745262414967,0.10575594,86981.0,86980.0,0.230095]
[1745262415955,0.13233084,86981.0,86980.0,0.230095]
[1745262416501,0.96225163,86981.0,86980.0,0.00015709]
[1745262416700,1.07679248,86981.0,86980.0,0.00015709]
[1745262416902,0.97679248,86981.0,86980.0,0.00015709]
[1745262417103,1.07679248,86981.0,86980.0,0.00015709]
[1745262417328,1.07579248,86981.0,86980.0,0.00015709]
[1745262417519,1.08546689,86981.0,86980.0,0.00015709]
[1745262417718,1.08546689,86981.0,86951.0,0.004]
[1745262417719,0.23000138,86956.0,86951.0,0.004]
[1745262417924,0.60359732,86956.0,86955.0,0.00097817]
[1745262418122,0.63012933,86956.0,86955.0,0.00097817]
[1745262418477,0.98188754,86956.0,86955.0,0.00097817]
[1745262420286,0.99371531,86956.0,86955.0,0.00097817]
[1745262420498,0.99471531,86956.0,86955.0,0.00097817]
[1745262427400,1.00925616,86956.0,86955.0,0.00097817]
[1745262428418,1.00825616,86956.0,86955.0,0.00097817]
[1745262428773,1.00725616,86956.0,86955.0,0.00097817]
[1745262429012,0.99675531,86956.0,86955.0,0.00097817]
[1745262430102,0.86273154,86956.0,86955.0,0.00097817]
[1745262430515,0.87342562,86956.0,86955.0,0.00097817]
[1745262430738,0.88796647,86956.0,86955.0,1e-08]
[1745262431131,0.93616647,86956.0,86955.0,1e-08]
[1745262432103,0.98156647,86956.0,86955.0,1e-08]
[1745262432306,0.58455281,86952.0,86951.0,1e-08]
[1745262432535,0.96930875,86952.0,86951.0,1e-08]
[1745262432740,0.90581169,86952.0,86951.0,1e-08]
[1745262432963,0.90481169,86952.0,86951.0,1e-08]
[1745262433371,0.90981169,86952.0,86951.0,1e-08]
[1745262433723,1.02169169,86952.0,86951.0,1e-08]
[1745262434141,1.02269169,86952.0,86951.0,1e-08]
[1745262434356,1.12569169,86952.0,86951.0,1e-08]
[1745262434563,1.12169169,86952.0,86951.0,1e-08]
[1745262434878,1.12469169,86952.0,86951.0,1e-08]
[1745262435304,1.12169169,86952.0,86951.0,1e-08]
[1745262435514,1.02069169,86952.0,86951.0,1e-08]
[1745262435754,1.02469169,86952.0,86951.0,1e-08]
[1745262436150,1.02369169,86952.0,86951.0,1e-08]
[1745262436381,1.13844374,86952.0,86951.0,1e-08]
[1745262438632,1.51784374,86952.0,86951.0,1e-08]
[1745262438968,1.40796374,86952.0,86951.0,1e-08]
[1745262439184,1.40796374,86952.0,86943.0,1e-08]
[1745262439185,0.01454085,86945.0,86943.0,1e-08]
[1745262439379,0.72409141,86944.0,86943.0,4.529e-05]
[1745262439580,0.99409141,86944.0,86943.0,4.529e-05]
[1745262439781,1.02617492,86944.0,86943.0,4.529e-05]
[1745262440828,1.00678549,86944.0,86943.0,4.529e-05]
[1745262442271,1.00878549,86944.0,86943.0,4.529e-05]
[1745262442724,1.0408606,86944.0,86943.0,4.529e-05]
[1745262442920,1.04086078,86944.0,86943.0,4.529e-05]
[1745262445259,1.02631993,86944.0,86943.0,4.529e-05]
[1745262445469,0.53409152,86944.0,86943.0,4.529e-05]
[1745262445670,0.43409152,86944.0,86943.0,0.23008106]
[1745262446411,0.26409152,86944.0,86943.0,0.23008106]
[1745262446617,0.26209152,86944.0,86943.0,0.23008106]
[1745262446848,0.26009152,86944.0,86943.0,0.23008106]
[1745262447044,0.26109152,86944.0,86943.0,0.23108106]
[1745262447612,0.63009152,86944.0,86943.0,0.00204529]
[1745262447833,0.63009152,86944.0,86943.0,0.00304529]
[1745262448409,0.86012464,86944.0,86943.0,0.00204529]
[1745262448611,0.86012464,86944.0,86943.0,0.00304529]
[1745262448989,0.86012464,86944.0,86943.0,0.00204529]
[1745262449202,0.86012464,86944.0,86943.0,0.00104529]
[1745262449383,0.86012464,86944.0,86943.0,0.00204529]
[1745262449984,0.63009152,86944.0,86943.0,0.00204529]
[1745262450203,0.63009152,86944.0,86943.0,0.23108106]
[1745262450656,0.63009152,86944.0,86943.0,0.23208106]
[1745262452012,0.29009152,86944.0,86943.0,0.23208106]
[1745262454251,0.18021152,86944.0,86943.0,0.23208106]
[1745262458771,0.15021152,86944.0,86943.0,0.23208106]
[1745262459016,0.13951744,86944.0,86943.0,0.23208106]
[1745262468726,0.0257615,86944.0,86943.0,0.27808106]
[1745262468928,0.01069408,86958.0,86957.0,0.22999873]
[1745262469130,0.12445002,86958.0,86957.0,0.27989873]
[1745262469332,0.11375594,86958.0,86957.0,0.27989873]
[1745262470115,0.11475594,86958.0,86957.0,0.27989873]
[1745262470468,0.1098,86968.0,86967.0,0.22997228]
[1745262470684,0.22355594,86968.0,86967.0,0.22997228]
[1745262471091,0.24517159,86968.0,86967.0,0.22997228]
[1745262472380,0.24517159,86968.0,86967.0,0.23097228]
[1745262472600,0.13141565,86968.0,86967.0,0.27987228]
[1745262472996,0.1098,86968.0,86967.0,0.27987228]
[1745262473813,0.1098,86968.0,86967.0,0.28087228]
[1745262475492,0.80372558,86968.0,86967.0,0.002]
[1745262475900,0.82560862,86968.0,86967.0,0.002]
[1745262476099,0.59563898,86968.0,86967.0,0.002]
[1745262476327,0.62779352,86968.0,86967.0,0.23097228]
[1745262476680,0.60633306,86968.0,86967.0,0.23097228]
[1745262477098,0.59563898,86968.0,86967.0,0.22997228]
[1745262477496,0.59563898,86968.0,86967.0,0.23097228]
[1745262478707,0.70543898,86968.0,86967.0,0.23097228]
[1745262480306,0.93540862,86968.0,86967.0,0.001]
[1745262480513,0.93640862,86968.0,86967.0,0.001]
[1745262480712,0.98460862,86968.0,86967.0,0.001]
[1745262480931,0.9953027,86968.0,86967.0,0.001]
[1745262481345,1.01676316,86968.0,86967.0,0.001]
[1745262481882,0.01149914,86963.0,86960.0,0.22998846]
[1745262482085,0.45375594,86961.0,86960.0,0.22998846]
[1745262482289,0.60375594,86961.0,86960.0,0.22998846]
[1745262482486,0.58149041,86960.0,86956.0,0.23000121]
[1745262482686,0.01150073,86951.0,86947.0,0.23002469]
[1745262482893,0.34,86949.0,86943.0,0.00104529]
[1745262483117,0.11375594,86948.0,86944.0,0.23003053]
[1745262483318,0.30554693,86948.0,86944.0,0.23003053]
[1745262483535,0.01150125,86947.0,86944.0,0.23003053]
[1745262483667,0.11375594,86946.0,86944.0,0.23003053]
[1745262483872,0.30704572,86946.0,86943.0,0.00104529]
[1745262484126,0.29554433,86946.0,86944.0,0.23003101]
[1745262484274,0.29554433,86946.0,86945.0,0.23003047]
[1745262485723,0.29554433,86946.0,86945.0,0.23103047]
[1745262486711,0.29554433,86946.0,86945.0,0.23203047]
[1745262487314,0.13554433,86946.0,86945.0,0.27983047]
[1745262487521,0.02178839,86946.0,86945.0,0.27983047]
[1745262487718,0.01069408,86952.0,86951.0,0.2300146]
[1745262487966,0.11375594,86952.0,86951.0,0.2761146]
[1745262490475,0.11375594,86952.0,86951.0,0.2771146]
[1745262491059,0.11375594,86952.0,86951.0,0.2781146]
[1745262492629,0.11375594,86952.0,86951.0,0.2320146]
[1745262496034,0.3637679,86952.0,86951.0,0.002]
[1745262496327,0.15537559,86952.0,86951.0,0.002]
[1745262496470,0.39608163,86952.0,86951.0,0.002]
[1745262496819,0.16606967,86952.0,86951.0,0.002]
[1745262497076,0.14606967,86952.0,86951.0,0.002]
[1745262497480,0.37608163,86952.0,86951.0,0.002]
[1745262497851,0.14606967,86952.0,86951.0,0.002]
[1745262499119,0.03231373,86952.0,86951.0,0.2320146]
[1745262499322,0.01069408,86952.0,86951.0,0.2320146]
[1745262499936,0.01069408,86958.0,86957.0,0.22999873]
[1745262500119,0.14612161,86958.0,86957.0,0.22999873]
[1745262500432,0.03236567,86958.0,86957.0,0.32389873]
[1745262500570,0.03236567,86958.0,86957.0,0.32489873]
[1745262500773,0.01069408,86958.0,86957.0,0.32489873]
[1745262500969,0.01069408,86958.0,86957.0,0.33633603]
[1745262501174,0.001,86968.0,86967.0,0.22997228]
[1745262502313,0.001,86968.0,86967.0,0.27807228]
[1745262502837,0.001,86968.0,86967.0,0.27907228]
[1745262503662,0.001,86968.0,86967.0,0.32777228]
[1745262503868,0.001,86968.0,86967.0,0.32877228]
[1745262504913,0.001,86968.0,86967.0,0.32777228]
[1745262505964,0.001,86968.0,86967.0,0.32677228]
[1745262506175,0.001,86968.0,86967.0,0.32877228]
[1745262508164,1e-08,86968.0,86967.0,0.32977227]
[1745262508918,1e-08,86968.0,86967.0,0.32877227]
[1745262509121,1e-08,86968.0,86967.0,0.32977227]
[1745262509642,1e-08,86968.0,86967.0,0.33177227]
[1745262510798,0.000422,86979.0,86978.0,0.2299432]
[1745262511009,0.000422,86979.0,86978.0,0.2780432]
[1745262511229,0.000422,86979.0,86978.0,0.27904319]
[1745262511993,0.000422,86979.0,86978.0,0.27908847]
[1745262512395,0.000422,86979.0,86978.0,0.32778847]
[1745262513257,0.23036256,86979.0,86978.0,0.09784527]
[1745262513468,0.23036256,86979.0,86978.0,0.27908847]
[1745262513469,0.000422,86979.0,86978.0,0.27908847]
[1745262513676,0.13587676,86979.0,86978.0,0.00104527]
[1745262513869,0.12417794,86979.0,86978.0,0.23098847]
[1745262514217,0.14631457,86979.0,86978.0,0.23098847]
[1745262515738,0.13631457,86979.0,86978.0,0.23098847]
[1745262516851,0.11417794,86979.0,86978.0,0.23098847]
[1745262519546,0.13630213,86979.0,86978.0,0.23098847]
[1745262520312,0.11417794,86979.0,86978.0,0.23098847]
[1745262520913,0.13630213,86979.0,86978.0,0.23098847]
[1745262526388,0.76624269,86979.0,86978.0,0.00104527]
[1745262528279,0.77795942,86979.0,86978.0,0.00104527]
[1745262528726,0.77895942,86979.0,86978.0,0.00104527]
[1745262528981,0.77795942,86979.0,86978.0,0.00104527]
[1745262529235,0.54901886,86979.0,86978.0,0.00104527]
[1745262529490,0.14901886,86979.0,86978.0,0.27808847]
[1745262530014,0.03526292,86979.0,86978.0,0.27808847]
[1745262530245,0.03526292,86979.0,86978.0,0.41615317]
[1745262530451,0.01313873,86979.0,86978.0,0.41615317]
[1745262530910,0.01213873,86979.0,86978.0,0.41615317]
[1745262531124,0.01213873,86979.0,86978.0,0.41715317]
[1745262531744,0.01113873,86979.0,86978.0,0.41715317]
[1745262531955,0.000422,86979.0,86978.0,0.41715317]
[1745262532168,0.000422,86979.0,86978.0,0.41815317]
[1745262532801,0.000422,86979.0,86978.0,0.42939316]
[1745262533309,0.000422,86979.0,86978.0,0.33692846]
[1745262535064,0.000422,86979.0,86978.0,0.32568847]
[1745262538782,0.000422,86979.0,86978.0,0.28008847]
[1745262539201,0.11417794,86979.0,86978.0,0.00304527]
[1745262539635,0.1363513,86979.0,86978.0,0.00304527]
[1745262540056,0.1363513,86979.0,86978.0,0.23198847]
[1745262540645,0.14706803,86979.0,86978.0,0.23198847]
[1745262540857,0.14706803,86979.0,86978.0,0.23098847]
[1745262541109,0.14706803,86979.0,86978.0,0.00104527]
[1745262541319,0.37700859,86979.0,86978.0,0.00204527]
[1745262541529,0.14706803,86979.0,86978.0,0.23198847]
[1745262541757,0.14706803,86979.0,86978.0,0.23098847]
[1745262543408,0.03331209,86979.0,86978.0,0.32728847]
[1745262543876,0.01113873,86979.0,86978.0,0.32828847]
[1745262544079,0.01113873,86979.0,86978.0,0.33981522]
[1745262544500,0.000422,86979.0,86978.0,0.33981522]
[1745262544923,0.000422,86979.0,86978.0,0.34081522]
[1745262545682,0.000422,86979.0,86978.0,0.34181522]
[1745262547429,0.000422,86998.0,86997.0,0.22989298]
[1745262547648,0.01074445,87008.0,87002.0,0.22987977]
[1745262547649,0.00030543,87003.0,87002.0,0.22987977]
[1745262548031,0.00030543,87003.0,87002.0,0.23217835]
[1745262549560,0.00030543,87003.0,87002.0,0.28995696]
[1745262549804,0.00030543,87003.0,87002.0,0.28765838]
[1745262551020,0.00030543,87003.0,87002.0,0.28865838]
[1745262551342,0.00030543,87003.0,87002.0,0.28965838]
[1745262551560,0.00030543,87003.0,87002.0,0.27717977]
[1745262551765,0.00030543,87003.0,87002.0,0.23187977]
[1745262568201,0.00030543,87003.0,87002.0,0.32857977]
[1745262568415,0.24170102,87038.0,87002.0,0.32857977]
[1745262568416,0.054,87069.0,87002.0,0.54822064]
[1745262568612,0.004597,87064.0,87063.0,0.2297187]
[1745262568834,0.004,87069.0,87065.0,0.22971343]
[1745262569619,0.11417784,87066.0,87065.0,0.22971343]
[1745262569822,0.11417784,87066.0,87065.0,0.21971343]
[1745262570286,0.1098219,87066.0,87065.0,0.21971343]
[1745262570518,0.1102787,87066.0,87065.0,0.21971343]
[1745262570735,0.0008787,87066.0,87065.0,0.21971343]
[1745262575454,0.11463464,87066.0,87065.0,0.21971343]
[1745262575883,0.13441799,87066.0,87065.0,0.21971343]
[1745262581642,0.34,87065.0,87063.0,0.22971637]
[1745262581869,0.11375594,87064.0,87063.0,0.22971637]
[1745262582081,0.28354265,87064.0,87063.0,0.22971637]
[1745262583222,0.28354265,87064.0,87061.0,0.22972247]
[1745262583350,0.28354265,87064.0,87062.0,0.2297193]
[1745262583557,0.28354265,87064.0,87063.0,0.2297187]
[1745262583787,0.28354265,87064.0,87062.0,0.2297193]
[1745262583992,0.28354265,87064.0,87063.0,0.2297187]
[1745262584198,0.28354265,87064.0,87062.0,0.2297193]
[1745262585426,0.24120463,87063.0,87054.0,0.01148712]
[1745262585629,0.11375594,87062.0,87060.0,0.2297257]
[1745262585825,0.28361507,87062.0,87060.0,0.2297257]
[1745262586280,0.51333702,87062.0,87060.0,0.2297257]
[1745262586739,0.28361507,87062.0,87060.0,0.2297257]
[1745262587238,0.01148619,87061.0,87058.0,0.2297298]
[1745262587610,0.11375594,87060.0,87059.0,0.22972926]
[1745262587782,0.19361248,87060.0,87059.0,0.22972926]
[1745262588275,0.19361248,87060.0,87058.0,0.2297298]
[1745262588489,0.19361248,87060.0,87059.0,0.22972926]
[1745262589465,0.19361248,87060.0,87058.0,0.2297298]
[1745262589664,0.19361248,87060.0,87053.0,0.01148725]
[1745262589665,0.22974122,87055.0,87046.0,0.01148817]
[1745262589910,0.11375594,87054.0,87053.0,0.22974509]
[1745262590120,0.13360472,87054.0,87053.0,0.22974509]
[1745262591085,0.16509184,87054.0,87051.0,0.22974997]
[1745262591288,0.15360472,87054.0,87051.0,0.22974957]
[1745262591529,0.13360472,87054.0,87052.0,0.22974516]
[1745262591738,0.10924,87053.0,87052.0,0.22974516]
[1745262591937,0.24273868,87053.0,87052.0,0.22974516]
[1745262592167,0.24273868,87053.0,87051.0,0.22974967]
[1745262592377,0.11375594,87052.0,87051.0,0.22974967]
[1745262592578,0.13349738,87052.0,87051.0,0.22974967]
[1745262594894,0.13449738,87052.0,87051.0,0.22974967]
[1745262595135,0.14585158,87052.0,87051.0,0.22974967]
[1745262596386,0.01148751,87051.0,87048.0,0.22975766]
[1745262596565,0.01148751,87051.0,87046.0,0.01148817]
[1745262596566,0.01148778,87049.0,87047.0,0.22976026]
[1745262596765,0.11375594,87048.0,87047.0,0.22976026]
[1745262597013,0.13342315,87048.0,87047.0,0.22976026]
[1745262597839,0.14410101,87048.0,87047.0,0.22976026]
[1745262600884,0.13958507,87048.0,87047.0,0.22976026]
[1745262601103,0.11991786,87048.0,87047.0,0.22976026]
[1745262601535,0.10924,87048.0,87047.0,0.22976026]
[1745262602504,0.22976093,87047.0,87043.0,0.22977149]
[1745262602681,0.22976093,87047.0,87045.0,0.22976621]
[1745262602682,0.11375594,87046.0,87045.0,0.22976621]
[1745262602897,0.14340521,87046.0,87045.0,0.22976621]
[1745262605853,0.01148844,87044.0,87038.0,0.2297829]
[1745262606060,0.11375594,87043.0,87039.0,0.0114891]
[1745262606270,0.30340132,87043.0,87038.0,0.24127318]
[1745262606714,0.31488989,87043.0,87040.0,0.22977746]
[1745262607210,0.31413763,87043.0,87041.0,0.22977668]
[1745262607453,0.31413763,87043.0,87039.0,0.24127088]
[1745262607634,0.31413763,87043.0,87040.0,0.22977712]
[1745262607840,0.31413763,87043.0,87037.0,0.24127652]
[1745262607841,0.0114887,87042.0,87037.0,0.24127652]
[1745262608040,0.11375594,87041.0,87038.0,0.01148923]
[1745262608212,0.27334862,87041.0,87038.0,0.01148923]
[1745262608418,0.28483745,87041.0,87037.0,0.24127652]
[1745262608618,0.27334862,87041.0,87038.0,0.22978242]
[1745262608823,0.27334862,87041.0,87040.0,0.22977941]
[1745262609192,0.28408493,87041.0,87040.0,0.22977941]
[1745262610061,0.28408493,87041.0,87038.0,0.24127165]
[1745262610316,0.28408493,87041.0,87039.0,0.22978144]
[1745262610517,0.28408493,87041.0,87040.0,0.22977941]
[1745262610518,0.27334862,87041.0,87040.0,0.22977941]
[1745262612111,0.2840902,87041.0,87040.0,0.22977941]
[1745262614102,0.03033426,87041.0,87040.0,0.22977941]
[1745262614305,0.03033426,87041.0,87040.0,0.27947941]
[1745262614499,0.37888,87072.0,87040.0,0.27947941]
[1745262614500,0.01074158,87054.0,87053.0,0.22974509]
[1745262614847,0.01074158,87054.0,87053.0,0.27764243]
[1745262615081,0.01074158,87054.0,87053.0,0.27534509]
[1745262615670,0.10912,87061.0,87060.0,0.27942662]
[1745262616041,0.001,87065.0,87064.0,0.22971607]
[1745262616170,0.001,87065.0,87064.0,0.27761306]
[1745262616379,0.001,87065.0,87064.0,0.27531607]
[1745262617215,0.003,87065.0,87064.0,0.27531607]
[1745262617535,0.003,87069.0,87068.0,0.27780551]
[1745262619905,0.003,87069.0,87068.0,0.27980551]
[1745262620382,0.003,87069.0,87068.0,0.28080551]
[1745262629734,0.23270287,87069.0,87068.0,0.003]
[1745262629942,0.35645881,87069.0,87068.0,0.003]
[1745262630149,0.35645881,87069.0,87068.0,0.23270551]
[1745262630150,0.14688365,87069.0,87068.0,0.23270551]
[1745262630799,0.14688365,87069.0,87068.0,0.23170551]
[1745262631012,0.14688365,87069.0,87068.0,0.002]
[1745262631204,0.14688365,87069.0,87068.0,0.23170551]
[1745262631426,0.15881422,87069.0,87068.0,0.002]
[1745262631850,0.15881422,87069.0,87068.0,0.23170551]
[1745262632077,0.15881422,87069.0,87068.0,0.22970551]
[1745262632483,0.15881422,87069.0,87068.0,0.23070551]
[1745262632779,0.15881422,87069.0,87068.0,0.22970551]
[1745262633469,0.15875422,87069.0,87068.0,0.22970551]
[1745262636400,0.17028477,87069.0,87068.0,0.22970551]
[1745262636874,0.15875422,87069.0,87068.0,0.22970551]
[1745262639291,0.15875422,87069.0,87066.0,0.2411937]
[1745262639497,0.04499828,87069.0,87068.0,0.22970551]
[1745262639701,0.15875422,87069.0,87066.0,0.2411937]
[1745262639901,0.11375594,87068.0,87067.0,0.22970746]
[1745262640067,0.14707266,87068.0,87067.0,0.22970746]
[1745262640661,0.14707266,87068.0,87066.0,0.2411937]
[1745262640894,0.14707266,87068.0,87067.0,0.22970815]
[1745262642772,0.14707266,87068.0,87064.0,0.22975893]
[1745262642773,0.3767783,87068.0,87064.0,4.528e-05]
[1745262642942,0.38826357,87068.0,87065.0,0.01148567]
[1745262643244,0.22970873,87067.0,87065.0,0.01148567]
[1745262643474,0.11375594,87066.0,87064.0,0.24124481]
[1745262643653,0.22971343,87065.0,87064.0,4.528e-05]
[1745262643861,0.51667357,87065.0,87064.0,4.528e-05]
[1745262645278,0.51767357,87065.0,87064.0,4.528e-05]
[1745262645705,0.51667357,87065.0,87064.0,4.528e-05]
[1745262646110,0.52067357,87065.0,87064.0,4.528e-05]
[1745262647171,0.86167357,87065.0,87064.0,4.528e-05]
[1745262647390,0.88401204,87065.0,87064.0,4.528e-05]
[1745262647597,0.86167357,87065.0,87064.0,4.528e-05]
[1745262648008,0.87237972,87065.0,87064.0,4.528e-05]
[1745262654144,0.41162629,87065.0,87064.0,0.22976135]
[1745262654436,0.40092014,87065.0,87064.0,0.22976135]
[1745262655645,0.29196014,87065.0,87064.0,0.22976135]
[1745262656457,0.28996014,87065.0,87064.0,0.22976135]
[1745262656678,0.28896014,87065.0,87064.0,0.22976135]
[1745262657200,0.62996014,87065.0,87064.0,0.22976135]
[1745262659449,0.62996014,87065.0,87064.0,4.528e-05]
[1745262659840,0.64067712,87065.0,87064.0,4.528e-05]
[1745262660391,0.87039055,87065.0,87064.0,4.528e-05]
[1745262665039,0.9841426,87065.0,87064.0,4.528e-05]
[1745262665240,0.87039055,87065.0,87064.0,4.528e-05]
[1745262666324,0.86939055,87065.0,87064.0,4.528e-05]
[1745262666560,0.87139055,87065.0,87064.0,4.528e-05]
[1745262667015,0.92648496,87065.0,87064.0,4.528e-05]
[1745262667434,0.92049055,87065.0,87064.0,4.528e-05]
[1745262667643,0.9526902,87065.0,87064.0,4.528e-05]
[1745262668204,0.92049055,87065.0,87064.0,4.528e-05]
[1745262670914,0.87339055,87065.0,87064.0,4.528e-05]
[1745262671129,0.53339055,87065.0,87064.0,4.528e-05]
[1745262671528,0.87339055,87065.0,87064.0,4.528e-05]
[1745262671884,0.64367712,87065.0,87064.0,4.528e-05]
[1745262672107,0.64167712,87065.0,87064.0,4.528e-05]
[1745262672308,0.74863712,87065.0,87064.0,4.528e-05]
[1745262672512,0.74863712,87065.0,87064.0,0.22976135]
[1745262672721,0.61063712,87065.0,87064.0,0.27916135]
[1745262672917,0.62063712,87065.0,87064.0,0.27916135]
[1745262673317,0.61863712,87065.0,87064.0,0.27916135]
[1745262673513,0.61763712,87065.0,87064.0,0.27916135]
[1745262673817,0.61863712,87065.0,87064.0,0.27916135]
[1745262674403,0.60792014,87065.0,87064.0,0.27916135]
[1745262674807,0.60892014,87065.0,87064.0,0.27916135]
[1745262675796,0.61963712,87065.0,87064.0,0.04944528]
[1745262676208,0.61963712,87065.0,87064.0,0.27916135]
[1745262677202,0.60892014,87065.0,87064.0,0.27916135]
[1745262679069,0.60892014,87065.0,87064.0,4.528e-05]
[1745262679515,0.60892014,87065.0,87064.0,0.22976135]
[1745262680759,0.59892014,87065.0,87064.0,0.22976135]
[1745262680957,0.61963712,87065.0,87064.0,0.22976135]
[1745262681346,0.61963712,87065.0,87064.0,4.528e-05]
[1745262682295,0.84935055,87065.0,87064.0,4.528e-05]
[1745262690834,0.84835055,87065.0,87064.0,4.528e-05]
[1745262691592,0.84831055,87065.0,87064.0,4.528e-05]
[1745262697831,1.26421055,87065.0,87064.0,4.528e-05]
[1745262704260,1.29646142,87065.0,87064.0,4.528e-05]
[1745262704457,1.26421055,87065.0,87064.0,4.528e-05]
[1745262705204,0.92553712,87065.0,87064.0,0.22976135]
[1745262706842,0.92530815,87065.0,87064.0,0.22976135]
[1745262709689,0.50940815,87065.0,87064.0,4.528e-05]
[1745262710115,0.50940815,87065.0,87064.0,0.22976135]
[1745262710841,0.04592118,87065.0,87064.0,0.41972605]
[1745262711073,0.01271698,87065.0,87064.0,0.41972605]
[1745262711562,0.01171698,87065.0,87064.0,0.41972605]
[1745262711803,0.01071698,87065.0,87064.0,0.41972605]
[1745262711999,0.00294,87069.0,87068.0,0.27940551]
[1745262714120,0.00294,87069.0,87068.0,0.28040551]
[1745262714321,0.00294,87069.0,87068.0,0.28140551]
[1745262735781,0.00294,87069.0,87068.0,0.32980551]
[1745262735985,1e-08,87069.0,87068.0,0.4581023]
[1745262736403,0.0004219,87091.0,87090.0,0.32424749]
[1745262736834,0.0004219,87091.0,87090.0,0.34558802]
[1745262737464,0.0004219,87091.0,87090.0,0.32424749]
[1745262738569,0.0014219,87091.0,87090.0,0.32424749]
[1745262739548,0.0004219,87091.0,87090.0,0.34558341]
[1745262739808,0.0014219,87091.0,87090.0,0.34558341]
[1745262740008,0.0024219,87091.0,87090.0,0.34558341]
[1745262741074,0.0023819,87091.0,87090.0,0.34558341]
[1745262741280,0.0013819,87091.0,87090.0,0.34558341]
[1745262741714,0.0013819,87091.0,87090.0,0.34658341]
[1745262742521,0.0013819,87091.0,87090.0,0.32524749]
[1745262743051,0.0119731,87104.0,87103.0,0.22961321]
[1745262743256,0.12572904,87104.0,87103.0,0.22961321]
[1745262743456,0.15903305,87104.0,87103.0,0.22961321]
[1745262744242,0.15903305,87104.0,87103.0,0.22965849]
[1745262744419,0.16003305,87104.0,87103.0,0.22965849]
[1745262745004,0.16103305,87104.0,87103.0,0.22965849]
[1745262747572,0.19103305,87104.0,87103.0,0.22965849]
[1745262748390,0.19103305,87104.0,87103.0,4.528e-05]
[1745262748774,0.19103305,87104.0,87103.0,0.22965849]
[1745262749182,0.19103305,87104.0,87103.0,4.528e-05]
[1745262750002,0.42064363,87104.0,87103.0,4.528e-05]
[1745262751161,0.19103305,87104.0,87103.0,4.528e-05]
[1745262751335,0.03530401,87104.0,87103.0,0.32175849]
[1745262751839,0.002,87104.0,87103.0,0.32175849]
[1745262752257,0.001,87104.0,87103.0,0.32175849]
[1745262753227,0.01148,87108.0,87106.0,0.22960407]
[1745262753470,0.11375594,87107.0,87105.0,0.22960785]
[1745262753686,0.11375594,87107.0,87103.0,0.33323915]
[1745262753687,0.56961058,87104.0,87103.0,4.528e-05]
[1745262753915,0.90216652,87104.0,87103.0,4.528e-05]
[1745262754238,0.94183961,87104.0,87103.0,4.528e-05]
[1745262755168,0.94383961,87104.0,87103.0,4.528e-05]
[1745262755667,0.89303961,87104.0,87103.0,4.528e-05]
[1745262755870,0.89503961,87104.0,87103.0,4.528e-05]
[1745262756495,1.31093961,87104.0,87103.0,4.528e-05]
[1745262756700,1.31193961,87104.0,87103.0,4.528e-05]
[1745262760136,1.41438744,87104.0,87103.0,4.528e-05]
[1745262760343,1.46587984,87104.0,87103.0,4.528e-05]
[1745262761003,1.47742069,87104.0,87103.0,4.528e-05]
[1745262761222,0.61824221,87092.0,87068.0,0.0487436]
[1745262761494,0.90199815,87092.0,87091.0,0.01409225]
[1745262761711,0.93554847,87092.0,87091.0,0.01409225]
[1745262762126,0.94429381,87092.0,87091.0,0.01409225]
[1745262762301,0.94529381,87092.0,87091.0,0.01409225]
[1745262763375,0.89869381,87092.0,87091.0,0.01409225]
[1745262763934,0.90069381,87092.0,87091.0,0.01409225]
[1745262765375,1.31659381,87092.0,87091.0,0.01409225]
[1745262765769,1.42487381,87092.0,87091.0,0.01409225]
[1745262780939,1.00897381,87092.0,87091.0,0.01409225]
[1745262781760,1.01496651,87092.0,87091.0,0.01409225]
[1745262782452,1.00897381,87092.0,87091.0,0.01409225]
[1745262784268,0.66022847,87092.0,87091.0,0.06109225]
[1745262784946,0.15230626,87092.0,87091.0,0.06109225]
[1745262785152,0.03855032,87092.0,87091.0,0.2907371]
[1745262785569,0.001,87092.0,87091.0,0.2907371]
[1745262786092,0.11475594,87092.0,87091.0,0.06109225]
[1745262786290,0.54838612,87092.0,87091.0,0.01409225]
[1745262787529,0.31874391,87092.0,87091.0,0.01409225]
[1745262787727,0.31874391,87092.0,87091.0,0.26509057]
[1745262790619,0.14874391,87092.0,87091.0,0.26509057]
[1745262791990,0.14874391,87092.0,87091.0,0.03544572]
[1745262792113,0.14874391,87092.0,87091.0,0.26509057]
[1745262793665,0.14874391,87092.0,87091.0,0.03544572]
[1745262794698,0.37838612,87092.0,87091.0,0.03544572]
[1745262794896,0.14874391,87092.0,87091.0,0.03544572]
[1745262795077,0.14874391,87092.0,87091.0,0.26509057]
[1745262795278,0.14874391,87092.0,87091.0,0.03544572]
[1745262795515,0.14874391,87092.0,87091.0,0.26509057]
[1745262797364,0.14874391,87092.0,87091.0,0.03544572]
[1745262797568,0.14874391,87092.0,87091.0,0.26509057]
[1745262797986,0.14874391,87092.0,87091.0,0.03540572]
[1745262798206,0.52696411,87092.0,87091.0,0.03540572]
[1745262798430,1.44338313,87092.0,87091.0,0.03540572]
[1745262798645,0.22970287,87069.0,87057.0,0.0465]
[1745262798862,0.94153881,87069.0,87068.0,0.00092969]
[1745262799069,0.97562616,87069.0,87068.0,0.00092969]
[1745262799337,1.42234192,87069.0,87068.0,0.00092969]
[1745262799547,1.42833289,87069.0,87068.0,0.00092969]
[1745262799917,1.39751713,87069.0,87068.0,0.00092969]
[1745262800107,1.40887153,87069.0,87068.0,0.00092969]
[1745262800310,1.41748911,87069.0,87068.0,0.00092969]
[1745262801669,1.41948911,87069.0,87068.0,0.00092969]